[Event "Elegant 1st Division League 2024"]
[Site "Dhaka"]
[Date "2024.07.16"]
[Round "6.24"]
[White "Mohammed, Shaker Ullah"]
[Black "Jamal Uddin"]
[Result "1-0"]
[Annotator "RC"]
[ECO "B66"]
[WhiteElo "2018"]
[BlackElo "1963"]
[PlyCount "187"]
[EventDate "2024.07.10"]
[EventType "team-tourn"]
[EventCountry "BAN"]
[SourceTitle "playchess.com"]
[Source "ChessBase"]
[SourceQuality "1"]
[TimeControl "5400+30"]

1. e4 {[%emt 0:01:06]} c5 {[%emt 0:00:35]} 2. Nf3 {[%emt 0:00:46]} Nc6 {[%emt 0:01:03]} 3. d4 {[%emt 0:00:52]} cxd4 {[%emt 0:00:19]} 4. Nxd4 {[%emt 0:00:08]} Nf6 {[%emt 0:01:48]} 5. Nc3 {[%emt 0:01:56]} d6 {[%emt 0:00:20]} 6. Bg5 {[%emt 0:00:50]} e6 {[%emt 0:00:36]} 7. Qd2 {[%emt 0:01:18]} Be7 {[%emt 0:08:20]} 8. O-O-O {[%emt 0:02:20]} a6 {[%emt 0:02:04]} 9. Nxc6 {[%emt 0:00:24]} bxc6 {[%emt 0:00:08]} 10. f4 {[%emt 0:00:20]} d5 {[%emt 0:00:32]} 11. exd5 {[%emt 0:01:08]} cxd5 {[%emt 0:00:34]} 12. f5 {[%emt 0:00:33]} O-O {[%emt 0:00:19]} 13. fxe6 {[%emt 0:00:36]} fxe6 {[%emt 0:00:18]} 14. Be2 {[%emt 0:02:09]} Qb6 {[%emt 0:02:19]} 15. Be3 {[%emt 0:02:11]} Qc7 {[%emt 0:00:53]} 16. Bf4 {[%emt 0:01:04]} Qa5 {[%emt 0:03:05]} 17. Bf3 {[%emt 0:02:57]} Bb4 {[%emt 0:00:33]} 18. a3 {[%emt 0:00:37]} Bxa3 {[%emt 0:06:52]} 19. Nxd5 {[%emt 0:03:02]} Qxd2+ {[%emt 0:02:24]} 20. Rxd2 {[%emt 0:00:26]} Bxb2+ {[%emt 0:03:44]} 21. Kxb2 {[%emt 0:00:06]} exd5 {[%emt 0:00:25]} 22. Bd6 {[%emt 0:01:33]} Re8 {[%emt 0:01:20]} 23. Rxd5 {[%emt 0:01:25]} Bb7 {[%emt 0:03:11]} 24. Re5 {[%emt 0:01:44]} Bxf3 {[%emt 0:00:16]} 25. gxf3 {[%emt 0:00:15]} Red8 {[%emt 0:03:49]} 26. Rd1 {[%emt 0:03:00]} Rd7 {[%emt 0:00:45]} 27. c4 {[%emt 0:01:37]} Rad8 {[%emt 0:00:48]} 28. c5 {[%emt 0:00:13]} Kf7 {[%emt 0:02:03]} 29. f4 {[%emt 0:06:47]} Rc8 {[%emt 0:11:20]} 30. Rde1 {[%emt 0:01:19]} Ne8 {[%emt 0:01:33]} 31. Rf5+ {[%emt 0:01:41]} Nf6 {[%emt 0:00:31]} 32. Rfe5 {[%emt 0:00:34]} Ne8 {[%emt 0:04:12]} 33. Rf5+ {[%emt 0:02:06]} Nf6 {[%emt 0:00:17]} 34. Ra1 {[%emt 0:07:25]} Rc6 {[%emt 0:01:11]} 35. Re1 {[%emt 0:00:18]} Rc8 {[%emt 0:01:08]} 36. Ka3 {[%emt 0:00:23]} Rb7 {[%emt 0:08:14]} 37. h3 {[%emt 0:05:51]} h6 {[%emt 0:05:37]} 38. Rg1 {[%emt 0:02:21]} g6 {[%emt 0:01:40]} 39. Re5 {[%emt 0:00:22]} Ne8 {[%emt 0:00:22]} 40. Rd1 {[%emt 0:04:33]} Rc6 {[%emt 0:00:34]} 41. Ka4 {[%emt 0:02:18]} Nxd6 {[%emt 0:01:36]} 42. cxd6 {[%emt 0:00:46]} Rd7 {[%emt 0:01:19]} 43. Red5 {[%emt 0:00:10]} Ke6 {[%emt 0:04:47]} 44. Re5+ {[%emt 0:00:12]} Kf6 {[%emt 0:00:03]} 45. Red5 {[%emt 0:00:09]} Ke6 {[%emt 0:09:38]} 46. Re5+ {[%emt 0:00:12]} Kf6 {[%emt 0:01:24]} 47. Red5 {[%emt 0:00:11]} Rc4+ {[%emt 0:05:28]} 48. Ka5 {[%emt 0:00:07]} Rxf4 {[%emt 0:00:07]} 49. Kxa6 {[%emt 0:00:13]} Rb4 {[%emt 0:00:28]} 50. Re1 {[%emt 0:00:26]} g5 {[%emt 0:00:39]} 51. Rd3 {[%emt 0:00:12]} h5 {[%emt 0:00:21]} 52. Rf3+ {[%emt 0:00:26]} Rf4 {[%emt 0:01:00]} 53. Rd3 {[%emt 0:00:12]} g4 {[%emt 0:02:10]} 54. hxg4 {[%emt 0:00:15]} hxg4 {[%emt 0:00:03]} 55. Kb6 {[%emt 0:00:09]} Rc4 {[%emt 0:00:12]} 56. Re2 {[%emt 0:00:59]} Kf5 {[%emt 0:00:21]} 57. Re8 {[%emt 0:00:16]} Kf4 {[%emt 0:00:30]} 58. Re7 {[%emt 0:02:11]} Rxe7 {[%emt 0:00:28]} 59. dxe7 {[%emt 0:00:07]} Re4 {[%emt 0:01:08]} 60. Rd4 {[%emt 0:00:10]} Rxd4 {[%emt 0:00:12]} 61. e8=Q {[%emt 0:00:20]} g3 {[%emt 0:01:26]} 62. Qf7+ {[%emt 0:00:21]} Ke4 {[%emt 0:01:20]} 63. Kc5 {[%emt 0:01:12]} Rd3 {[%emt 0:00:43]} 64. Qg6+ {[%emt 0:00:11]} Ke3 {[%emt 0:00:26]} 65. Qxg3+ {[%emt 0:00:16]} Kd2 {[%emt 0:00:01]} 66. Qf4+ {[%emt 0:00:37]} Kc3 {[%emt 0:00:18]} 67. Qb4+ {[%emt 0:00:15]} Kc2 {[%emt 0:00:03]} 68. Kc4 {[%emt 0:00:25]} Re3 {[%emt 0:01:11]} 69. Qa4+ {[%emt 0:00:26]} Kb2 {[%emt 0:00:43]} 70. Qb5+ {[%emt 0:00:18]} Kc2 {[%emt 0:00:04]} 71. Qf5+ {[%emt 0:00:20]} Kd2 {[%emt 0:00:07]} 72. Kd4 {[%emt 0:00:37]} Re2 {[%emt 0:00:09]} 73. Qa5+ {[%emt 0:00:27]} Kc1 {[%emt 0:00:42]} 74. Qa1+ {[%emt 0:01:03]} Kd2 {[%emt 0:00:02]} 75. Qc3+ {[%emt 0:00:21]} Kd1 {[%emt 0:00:05]} 76. Qb3+ {[%emt 0:00:35]} Kd2 {[%emt 0:00:34]} 77. Qb4+ {[%emt 0:00:08]} Kc2 {[%emt 0:00:18]} 78. Qa4+ {[%emt 0:00:34]} Kd2 {[%emt 0:00:14]} 79. Qa5+ {[%emt 0:00:05]} Kc2 {[%emt 0:00:05]} 80. Qc3+ {[%emt 0:00:50]} Kd1 {[%emt 0:00:03]} 81. Qb3+ {[%emt 0:00:28]} Kd2 {[%emt 0:00:04]} 82. Qb1 {[%emt 0:00:50]} Rf2 {[%emt 0:00:31]} 83. Qd3+ {[%emt 0:00:56]} Ke1 {[%emt 0:00:02]} 84. Qc3+ {[%emt 0:00:22]} Ke2 {[%emt 0:00:16]} 85. Ke4 {[%emt 0:00:32]} Kf1 {[%emt 0:00:43]} 86. Ke3 {[%emt 0:01:06]} Re2+ {[%emt 0:00:16]} 87. Kd3 {[%emt 0:00:20]} Rf2 {[%emt 0:00:19]} 88. Qa1+ {[%emt 0:00:29]} Kg2 {[%emt 0:00:06]} 89. Qa7 {[%emt 0:00:30]} Kh1 {[%emt 0:01:31]} 90. Ke3 {[%emt 0:00:27]} Rg2 {[%emt 0:00:41]} 91. Kf3 {[%emt 0:00:45]} Rg3+ {[%emt 0:00:28]} 92. Kf2 {[%emt 0:00:07]} Rg2+ {[%emt 0:03:15]} 93. Kf1 {[%emt 0:00:12]} Ra2 {[%emt 0:02:18]} 94. Qg1# {[%emt 0:00:30]} 1-0

[Event "Elegant 1st Division League 2024"]
[Site "Dhaka"]
[Date "2024.07.17"]
[Round "7.1"]
[White "Sajib, Das"]
[Black "Hossain, Showkat Pollab"]
[Result "1-0"]
[Annotator "RC"]
[ECO "C00"]
[WhiteElo "1894"]
[BlackElo "1990"]
[PlyCount "69"]
[EventDate "2024.07.10"]
[EventType "team-tourn"]
[EventCountry "BAN"]
[SourceTitle "playchess.com"]
[Source "ChessBase"]
[SourceQuality "1"]
[TimeControl "5400+30"]

1. e4 {[%emt 0:07:32]} c5 {[%emt 0:01:24]} 2. Nf3 {[%emt 0:00:08]} Nc6 {[%emt 0:00:05]} 3. g3 {[%emt 0:00:11]} Nf6 {[%emt 0:02:17]} 4. d3 {[%emt 0:00:06]} d5 {[%emt 0:00:21]} 5. Nbd2 {[%emt 0:01:57]} e6 {[%emt 0:08:39]} 6. Bg2 {[%emt 0:00:07]} Be7 {[%emt 0:00:14]} 7. O-O {[%emt 0:00:09]} O-O {[%emt 0:00:02]} 8. Re1 {[%emt 0:00:05]} b5 {[%emt 0:03:40]} 9. e5 {[%emt 0:00:51]} Nd7 {[%emt 0:01:06]} 10. Nf1 {[%emt 0:00:07]} Bb7 {[%emt 0:00:47]} 11. h4 {[%emt 0:00:17]} Rc8 {[%emt 0:02:49]} 12. c3 {[%emt 0:00:24]} a5 {[%emt 0:00:50]} 13. h5 {[%emt 0:00:10]} b4 {[%emt 0:04:08]} 14. Bf4 {[%emt 0:00:53]} Ra8 {[%emt 0:11:26]} 15. N1h2 {[%emt 0:01:57]} a4 {[%emt 0:04:53]} 16. a3 {[%emt 0:00:17]} Nb6 {[%emt 0:05:28]} 17. Ng4 {[%emt 0:01:51]} Bc8 {[%emt 0:11:09]} 18. Qd2 {[%emt 0:08:40]} f5 {[%emt 0:04:05]} 19. exf6 {[%emt 0:04:37]} gxf6 {[%emt 0:01:14]} 20. Nh6+ {[%emt 0:09:51]} Kh8 {[%emt 0:02:09]} 21. g4 {[%emt 0:02:54]} e5 {[%emt 0:02:41]} 22. Bg3 {[%emt 0:04:53]} bxc3 {[%emt 0:03:29]} 23. bxc3 {[%emt 0:00:58]} c4 {[%emt 0:01:05]} 24. d4 {[%emt 0:02:53]} e4 {[%emt 0:08:01]} 25. Nh4 {[%emt 0:01:48]} Bd6 {[%emt 0:04:10]} 26. N6f5 {[%emt 0:05:36]} Bxf5 {[%emt 0:02:37]} 27. Bxd6 {[%emt 0:03:06]} Qxd6 {[%emt 0:00:53]} 28. Nxf5 {[%emt 0:00:21]} Qd7 {[%emt 0:02:56]} 29. Rab1 {[%emt 0:02:57]} Nc8 {[%emt 0:01:11]} 30. Qh6 {[%emt 0:05:06]} Rf7 {[%emt 0:01:32]} 31. f3 {[%emt 0:01:04]} exf3 {[%emt 0:00:55]} 32. Rb7 {[%emt 0:01:09]} N8e7 {[%emt 0:06:30]} 33. Rxd7 {[%emt 0:02:36]} Nxf5 {[%emt 0:00:02]} 34. gxf5 {[%emt 0:01:13]} Rxd7 {[%emt 0:00:37]} 35. Qxf6+ {[%emt 0:00:03]} 1-0

[Event "Elegant 1st Division League 2024"]
[Site "Dhaka"]
[Date "2024.07.17"]
[Round "7.2"]
[White "Ahmed, Mahtabuddin"]
[Black "Hrishin, Talukder"]
[Result "1/2-1/2"]
[Annotator "RC"]
[ECO "A13"]
[WhiteElo "1974"]
[BlackElo "1982"]
[PlyCount "46"]
[EventDate "2024.07.10"]
[EventType "team-tourn"]
[EventCountry "BAN"]
[SourceTitle "playchess.com"]
[Source "ChessBase"]
[SourceQuality "1"]
[TimeControl "5400+30"]

1. c4 {[%emt 0:00:04]} e6 {[%emt 0:18:57]} 2. Nf3 {[%emt 0:04:29]} b6 {[%emt 0:00:15]} 3. g3 {[%emt 0:01:05]} Bb7 {[%emt 0:00:07]} 4. Bg2 {[%emt 0:00:02]} f5 {[%emt 0:01:03]} 5. Nc3 {[%emt 0:01:22]} Bb4 {[%emt 0:00:02]} 6. a3 {[%emt 0:08:28]} Bxc3 {[%emt 0:00:34]} 7. dxc3 {[%emt 0:00:20]} a5 {[%emt 0:06:07]} 8. a4 {[%emt 0:07:52]} Nf6 {[%emt 0:00:03]} 9. b3 {[%emt 0:01:14]} O-O {[%emt 0:02:04]} 10. O-O {[%emt 0:00:22]} Qe7 {[%emt 0:02:11]} 11. Bg5 {[%emt 0:06:04]} d6 {[%emt 0:10:26]} 12. Nd4 {[%emt 0:09:43]} Bxg2 {[%emt 0:02:27]} 13. Kxg2 {[%emt 0:00:02]} h6 {[%emt 0:00:18]} 14. Bxf6 {[%emt 0:02:32]} Rxf6 {[%emt 0:01:46]} 15. Qc2 {[%emt 0:02:44]} Na6 {[%emt 0:18:59]} 16. e4 {[%emt 0:01:33]} Raf8 {[%emt 0:19:49]} 17. exf5 {[%emt 0:18:04]} exf5 {[%emt 0:00:11]} 18. Rfe1 {[%emt 0:00:57]} Qd7 {[%emt 0:00:20]} 19. f4 {[%emt 0:00:26]} g6 {[%emt 0:04:28]} 20. Rad1 {[%emt 0:13:31]} Nc5 {[%emt 0:00:32]} 21. Kg1 {[%emt 0:00:53]} R6f7 {[%emt 0:01:17]} 22. Re3 {[%emt 0:01:42]} Re8 {[%emt 0:00:19]} 23. Rde1 {[%emt 0:00:21]} Rfe7 {[%emt 0:00:36]} 1/2-1/2

[Event "Elegant 1st Division League 2024"]
[Site "Dhaka"]
[Date "2024.07.17"]
[Round "7.3"]
[White "Mohammed, Shaker Ullah"]
[Black "Shourya Paul"]
[Result "1-0"]
[Annotator "RC"]
[ECO "C54"]
[WhiteElo "2018"]
[BlackElo "1813"]
[PlyCount "53"]
[EventDate "2024.07.10"]
[EventType "team-tourn"]
[EventCountry "BAN"]
[SourceTitle "playchess.com"]
[Source "ChessBase"]
[SourceQuality "1"]
[TimeControl "5400+30"]

1. e4 {[%emt 0:08:07]} e5 {[%emt 0:00:51]} 2. Nf3 {[%emt 0:00:18]} Nc6 {[%emt 0:00:29]} 3. Bc4 {[%emt 0:00:32]} Nf6 {[%emt 0:00:26]} 4. d3 {[%emt 0:00:45]} Bc5 {[%emt 0:00:17]} 5. c3 {[%emt 0:00:56]} d6 {[%emt 0:00:42]} 6. a4 {[%emt 0:01:12]} a6 {[%emt 0:04:22]} 7. h3 {[%emt 0:02:58]} Ba7 {[%emt 0:03:16]} 8. Be3 {[%emt 0:01:52]} h6 {[%emt 0:02:54]} 9. O-O {[%emt 0:01:00]} g5 {[%emt 0:00:14]} 10. Bxa7 {[%emt 0:00:31]} Nxa7 {[%emt 0:01:18]} 11. Nbd2 {[%emt 0:03:17]} g4 {[%emt 0:07:38]} 12. hxg4 {[%emt 0:00:29]} Nxg4 {[%emt 0:00:30]} 13. d4 {[%emt 0:03:12]} Qf6 {[%emt 0:12:18]} 14. dxe5 {[%emt 0:03:27]} dxe5 {[%emt 0:00:51]} 15. g3 {[%emt 0:00:31]} Rg8 {[%emt 0:05:37]} 16. Kg2 {[%emt 0:03:02]} Nc6 {[%emt 0:01:28]} 17. Qe2 {[%emt 0:02:10]} Bd7 {[%emt 0:55:49]} 18. b4 {[%emt 0:00:50]} Ne7 {[%emt 0:00:00]} 19. Nh4 {[%emt 0:00:31]} O-O-O {[%emt 0:00:00]} 20. Ndf3 {[%emt 0:00:30]} Rg7 {[%emt 0:00:00]} 21. a5 {[%emt 0:03:38]} Qc6 {[%emt 0:00:00]} 22. Rfb1 {[%emt 0:03:54]} f5 {[%emt 0:00:00]} 23. b5 {[%emt 0:04:23]} axb5 {[%emt 0:00:00]} 24. Bxb5 {[%emt 0:00:59]} Qxe4 {[%emt 0:00:00]} 25. a6 {[%emt 0:00:16]} Qxe2 {[%emt 0:00:00]} 26. axb7+ {[%emt 0:00:14]} Kxb7 {[%emt 0:00:00]} 27. Bxd7+ {[%emt 0:00:20]} 1-0

[Event "Elegant 1st Division League 2024"]
[Site "Dhaka"]
[Date "2024.07.17"]
[Round "7.4"]
[White "Shankhodip De"]
[Black "Shahinur, Haque"]
[Result "1-0"]
[Annotator "RC"]
[ECO "A49"]
[WhiteElo "1942"]
[BlackElo "1833"]
[PlyCount "53"]
[EventDate "2024.07.10"]
[EventType "team-tourn"]
[EventCountry "BAN"]
[SourceTitle "playchess.com"]
[Source "ChessBase"]
[SourceQuality "1"]
[TimeControl "5400+30"]

1. d4 {[%emt 0:00:36]} Nf6 {[%emt 0:00:18]} 2. Nf3 {[%emt 0:00:29]} g6 {[%emt 0:00:49]} 3. g3 {[%emt 0:00:28]} Bg7 {[%emt 0:01:28]} 4. Bg2 {[%emt 0:00:52]} c5 {[%emt 0:03:13]} 5. dxc5 {[%emt 0:01:10]} Qa5+ {[%emt 0:02:28]} 6. Nfd2 {[%emt 0:00:40]} Nc6 {[%emt 0:02:33]} 7. Nc3 {[%emt 0:01:40]} Qxc5 {[%emt 0:01:16]} 8. Nb3 {[%emt 0:01:15]} Qh5 {[%emt 0:07:50]} 9. h3 {[%emt 0:01:42]} d6 {[%emt 0:11:32]} 10. Bf4 {[%emt 0:05:42]} Qf5 {[%emt 0:07:58]} 11. Qd2 {[%emt 0:02:50]} O-O {[%emt 0:06:21]} 12. O-O-O {[%emt 0:15:32]} a5 {[%emt 0:04:01]} 13. a4 {[%emt 0:01:10]} Ne8 {[%emt 0:09:41]} 14. Nd5 {[%emt 0:03:55]} Ra6 {[%emt 0:09:14]} 15. h4 {[%emt 0:06:01]} Qd7 {[%emt 0:02:06]} 16. h5 {[%emt 0:01:08]} Ne5 {[%emt 0:06:53]} 17. Qe3 {[%emt 0:09:02]} e6 {[%emt 0:07:56]} 18. Bxe5 {[%emt 0:45:18]} Bxe5 {[%emt 0:02:52]} 19. Nc3 {[%emt 0:00:00]} Bg7 {[%emt 0:01:28]} 20. Nc5 {[%emt 0:00:00]} Qc7 {[%emt 0:01:32]} 21. Nxa6 {[%emt 0:00:00]} bxa6 {[%emt 0:00:04]} 22. hxg6 {[%emt 0:00:00]} hxg6 {[%emt 0:01:32]} 23. g4 {[%emt 0:00:00]} d5 {[%emt 0:00:21]} 24. g5 {[%emt 0:00:00]} f5 {[%emt 0:03:36]} 25. Nxd5 {[%emt 0:00:00]} exd5 {[%emt 0:03:24]} 26. Bxd5+ {[%emt 0:00:00]} Rf7 {[%emt 0:00:50]} 27. Qxe8+ {[%emt 0:00:00]} 1-0

[Event "Elegant 1st Division League 2024"]
[Site "Dhaka"]
[Date "2024.07.17"]
[Round "7.5"]
[White "Md, Eftekhar Alam"]
[Black "Mohammad, Shameem"]
[Result "1-0"]
[Annotator "RC"]
[ECO "D88"]
[WhiteElo "2006"]
[BlackElo "1951"]
[PlyCount "135"]
[EventDate "2024.07.10"]
[EventType "team-tourn"]
[EventCountry "BAN"]
[SourceTitle "playchess.com"]
[Source "ChessBase"]
[SourceQuality "1"]
[TimeControl "5400+30"]

1. d4 {[%emt 0:03:10]} Nf6 {[%emt 0:00:02]} 2. c4 {[%emt 0:00:15]} g6 {[%emt 0:00:04]} 3. Nc3 {[%emt 0:01:25]} d5 {[%emt 0:00:02]} 4. cxd5 {[%emt 0:00:29]} Nxd5 {[%emt 0:00:02]} 5. e4 {[%emt 0:00:16]} Nxc3 {[%emt 0:00:02]} 6. bxc3 {[%emt 0:00:08]} Bg7 {[%emt 0:00:05]} 7. Bc4 {[%emt 0:02:01]} c5 {[%emt 0:00:42]} 8. Ne2 {[%emt 0:00:33]} O-O {[%emt 0:00:21]} 9. O-O {[%emt 0:00:41]} Nc6 {[%emt 0:00:24]} 10. Be3 {[%emt 0:00:29]} Na5 {[%emt 0:11:59]} 11. Bd3 {[%emt 0:03:34]} cxd4 {[%emt 0:05:04]} 12. cxd4 {[%emt 0:01:40]} Nc6 {[%emt 0:00:22]} 13. e5 {[%emt 0:03:52]} Be6 {[%emt 0:04:06]} 14. Be4 {[%emt 0:03:43]} Bc4 {[%emt 0:06:59]} 15. Re1 {[%emt 0:01:14]} Bxe2 {[%emt 0:01:08]} 16. Rxe2 {[%emt 0:00:19]} Rc8 {[%emt 0:02:11]} 17. Rb1 {[%emt 0:07:21]} b6 {[%emt 0:04:49]} 18. Rc2 {[%emt 0:02:30]} Na5 {[%emt 0:00:48]} 19. Rbc1 {[%emt 0:01:32]} Qd7 {[%emt 0:03:58]} 20. h3 {[%emt 0:02:56]} b5 {[%emt 0:03:15]} 21. Bd3 {[%emt 0:07:27]} a6 {[%emt 0:00:51]} 22. Qd2 {[%emt 0:01:45]} Nc6 {[%emt 0:13:09]} 23. Be4 {[%emt 0:00:27]} Nb8 {[%emt 0:01:02]} 24. Rc5 {[%emt 0:05:30]} Rxc5 {[%emt 0:01:04]} 25. Rxc5 {[%emt 0:00:11]} Rc8 {[%emt 0:00:47]} 26. Qc3 {[%emt 0:00:51]} Rxc5 {[%emt 0:00:36]} 27. Qxc5 {[%emt 0:00:08]} e6 {[%emt 0:02:52]} 28. Qb6 {[%emt 0:01:39]} Qe8 {[%emt 0:01:09]} 29. Qc7 {[%emt 0:02:55]} h5 {[%emt 0:05:22]} 30. Bd2 {[%emt 0:01:02]} Bf8 {[%emt 0:02:54]} 31. Ba5 {[%emt 0:00:49]} Qd7 {[%emt 0:26:18]} 32. Bb6 {[%emt 0:02:05]} Qxc7 {[%emt 0:01:06]} 33. Bxc7 {[%emt 0:00:09]} Nd7 {[%emt 0:00:18]} 34. Bc6 {[%emt 0:00:08]} Nc5 35. dxc5 {[%emt 0:00:15]} Bxc5 {[%emt 0:00:32]} 36. Bb7 {[%emt 0:00:14]} a5 {[%emt 0:02:02]} 37. Bxa5 {[%emt 0:00:34]} Kg7 {[%emt 0:00:13]} 38. Kf1 {[%emt 0:00:19]} f6 {[%emt 0:00:18]} 39. Bc3 {[%emt 0:00:21]} fxe5 {[%emt 0:00:54]} 40. Bxe5+ {[%emt 0:00:09]} Kf7 {[%emt 0:00:25]} 41. f4 {[%emt 0:00:12]} Be7 {[%emt 0:00:09]} 42. Be4 {[%emt 0:00:23]} g5 {[%emt 0:00:09]} 43. Bd3 {[%emt 0:00:18]} b4 {[%emt 0:00:16]} 44. Ke2 {[%emt 0:00:16]} gxf4 {[%emt 0:00:06]} 45. Bxf4 {[%emt 0:00:14]} Kf6 {[%emt 0:00:29]} 46. Kf3 {[%emt 0:00:08]} e5 {[%emt 0:00:14]} 47. Bg3 {[%emt 0:00:28]} Ke6 {[%emt 0:00:33]} 48. Ke4 {[%emt 0:00:37]} Bf6 {[%emt 0:00:12]} 49. Bc4+ {[%emt 0:00:31]} Kd6 {[%emt 0:00:23]} 50. Bd5 {[%emt 0:00:47]} h4 {[%emt 0:00:20]} 51. Bf2 {[%emt 0:00:24]} Bd8 {[%emt 0:04:19]} 52. Be1 {[%emt 0:00:32]} Kc5 {[%emt 0:00:03]} 53. Kxe5 {[%emt 0:00:22]} Bc7+ {[%emt 0:00:27]} 54. Ke4 {[%emt 0:00:29]} Bd8 {[%emt 0:00:05]} 55. Bb3 {[%emt 0:00:02]} Be7 {[%emt 0:00:15]} 56. Kf3 {[%emt 0:00:08]} Kd4 {[%emt 0:00:09]} 57. Bf2+ {[%emt 0:00:09]} Ke5 {[%emt 0:00:19]} 58. Kg4 {[%emt 0:00:06]} Bf8 {[%emt 0:00:47]} 59. Bxh4 {[%emt 0:00:11]} Bc5 {[%emt 0:00:07]} 60. Bg5 {[%emt 0:00:09]} Bd4 {[%emt 0:00:14]} 61. h4 {[%emt 0:00:05]} Ke4 {[%emt 0:00:29]} 62. Kh5 {[%emt 0:00:40]} Kf5 {[%emt 0:00:44]} 63. g4+ {[%emt 0:00:09]} Ke4 {[%emt 0:00:06]} 64. Kg6 {[%emt 0:00:04]} Kf3 {[%emt 0:02:15]} 65. Be6 {[%emt 0:01:33]} Bc3 {[%emt 0:00:15]} 66. h5 {[%emt 0:00:09]} Ke4 {[%emt 0:00:49]} 67. h6 {[%emt 0:00:09]} Bd4 {[%emt 0:00:53]} 68. h7 {[%emt 0:49:47]} 1-0

[Event "Elegant 1st Division League 2024"]
[Site "Dhaka"]
[Date "2024.07.17"]
[Round "7.6"]
[White "Vrashank Chouhan"]
[Black "Mahindrakar Indrajeet"]
[Result "1-0"]
[Annotator "RC"]
[ECO "A57"]
[WhiteElo "2209"]
[BlackElo "2129"]
[PlyCount "103"]
[EventDate "2024.07.10"]
[EventType "team-tourn"]
[EventCountry "BAN"]
[SourceTitle "playchess.com"]
[Source "ChessBase"]
[SourceQuality "1"]
[TimeControl "5400+30"]

1. d4 {[%emt 0:00:29]} Nf6 {[%emt 0:03:07]} 2. c4 {[%emt 0:00:30]} c5 {[%emt 0:01:38]} 3. d5 {[%emt 0:01:01]} b5 {[%emt 0:00:14]} 4. cxb5 {[%emt 0:00:33]} a6 {[%emt 0:00:02]} 5. e3 {[%emt 0:00:49]} Bb7 {[%emt 0:03:01]} 6. Nc3 {[%emt 0:00:41]} axb5 {[%emt 0:09:44]} 7. Bxb5 {[%emt 0:00:24]} e6 {[%emt 0:00:08]} 8. e4 {[%emt 0:05:15]} Qa5 {[%emt 0:03:25]} 9. Qe2 {[%emt 0:01:10]} Be7 {[%emt 0:01:51]} 10. Bd2 {[%emt 0:09:19]} Qb6 {[%emt 0:05:00]} 11. Bc4 {[%emt 0:03:19]} exd5 {[%emt 0:28:03]} 12. exd5 {[%emt 0:02:50]} Na6 {[%emt 0:00:28]} 13. Nf3 {[%emt 0:22:27]} O-O {[%emt 0:01:17]} 14. O-O {[%emt 0:00:48]} Nb4 {[%emt 0:01:23]} 15. Rad1 {[%emt 0:10:31]} Nbxd5 {[%emt 0:18:49]} 16. Bxd5 {[%emt 0:01:47]} Bxd5 {[%emt 0:00:06]} 17. Nxd5 {[%emt 0:00:08]} Nxd5 {[%emt 0:20:44]} 18. Bc1 {[%emt 0:00:25]} Qc6 {[%emt 0:00:00]} 19. Qe5 {[%emt 0:01:14]} Nf6 {[%emt 0:00:00]} 20. Qxe7 {[%emt 0:00:34]} d5 {[%emt 0:00:00]} 21. Ne5 {[%emt 0:07:09]} Qb5 {[%emt 0:00:00]} 22. Nd3 {[%emt 0:01:09]} c4 {[%emt 0:00:00]} 23. Qb4 {[%emt 0:02:27]} Qa6 {[%emt 0:01:01]} 24. Nf4 {[%emt 0:01:43]} Qxa2 {[%emt 0:01:09]} 25. Nxd5 {[%emt 0:01:37]} Nxd5 {[%emt 0:00:12]} 26. Rxd5 {[%emt 0:00:05]} c3 {[%emt 0:00:37]} 27. Rc5 {[%emt 0:00:15]} cxb2 {[%emt 0:00:27]} 28. Qxb2 {[%emt 0:01:37]} Qe6 {[%emt 0:00:24]} 29. Be3 {[%emt 0:00:57]} Rfb8 {[%emt 0:00:55]} 30. Qc3 {[%emt 0:00:24]} h6 {[%emt 0:00:37]} 31. Qc4 {[%emt 0:00:55]} Qg6 {[%emt 0:00:13]} 32. g3 {[%emt 0:01:27]} Re8 {[%emt 0:00:29]} 33. Rd1 {[%emt 0:00:44]} Qf6 {[%emt 0:00:59]} 34. Qf4 {[%emt 0:01:09]} Qe6 {[%emt 0:00:28]} 35. Qf5 {[%emt 0:03:07]} Qb3 {[%emt 0:00:25]} 36. Qd5 {[%emt 0:00:53]} Qb8 {[%emt 0:00:48]} 37. Rb5 {[%emt 0:01:57]} Qc8 {[%emt 0:00:14]} 38. Rb7 {[%emt 0:00:24]} Qe6 {[%emt 0:00:07]} 39. Qxe6 {[%emt 0:00:07]} Rxe6 {[%emt 0:00:04]} 40. Rdd7 {[%emt 0:00:17]} Rf6 {[%emt 0:00:30]} 41. Kg2 {[%emt 0:01:29]} Ra4 {[%emt 0:01:11]} 42. f4 {[%emt 0:01:33]} h5 {[%emt 0:00:21]} 43. h3 {[%emt 0:00:58]} Ra2+ {[%emt 0:00:40]} 44. Kf3 {[%emt 0:00:50]} Ra3 {[%emt 0:00:21]} 45. Re7 {[%emt 0:03:07]} g5 {[%emt 0:00:45]} 46. Ke4 {[%emt 0:01:33]} gxf4 {[%emt 0:00:46]} 47. gxf4 {[%emt 0:00:39]} Ra4+ {[%emt 0:00:18]} 48. Bd4 {[%emt 0:01:10]} Rd6 {[%emt 0:00:53]} 49. Re8+ {[%emt 0:01:16]} Kh7 {[%emt 0:00:03]} 50. Rxf7+ {[%emt 0:00:05]} Kh6 {[%emt 0:00:41]} 51. Rh8+ {[%emt 0:00:06]} Kg6 {[%emt 0:00:13]} 52. Rg7# {[%emt 0:09:30]} 1-0